fUSD/lending_fUSD_20251221
["ID","MTS","AMOUNT","RATE_DAILY","PERIOD"]
[399393941,1766326259284,-300.0,0.00038493,2]
[399393942,1766326259295,-303.74388553,0.00038493,2]
[399393943,1766326259304,-300.0,0.00038493,2]
[399393944,1766326259313,-300.0,0.00038493,2]
[399393945,1766326259322,-367.30463184,0.00038493,2]
[399393946,1766326259331,-300.0,0.00038493,2]
[399393947,1766326259341,-302.95619983,0.00038493,2]
[399393948,1766326259350,-594.28559279,0.00038493,2]
[399393949,1766326259359,-300.0,0.00038493,2]
[399393950,1766326259369,-300.0,0.00038493,2]
[399393951,1766326259378,-300.0,0.00038493,2]
[399393952,1766326259387,-300.0,0.00038493,2]
[399393953,1766326259397,-300.0,0.00038493,2]
[399393954,1766326259406,-302.57000292,0.00038493,2]
[399393955,1766326259414,-300.0,0.00038493,2]
[399393956,1766326259423,-302.70668584,0.00038493,2]
[399393957,1766326259432,-300.0,0.00038493,2]
[399393958,1766326259440,-303.74388553,0.00038493,2]
[399393959,1766326259449,-300.0,0.00038493,2]
[399393960,1766326259458,-300.0,0.00038493,2]
[399393961,1766326259467,-367.30463184,0.00038493,2]
[399393962,1766326259475,-300.0,0.00038493,2]
[399393963,1766326259484,-302.95619983,0.00038493,2]
[399393964,1766326259493,-594.28559279,0.00038493,2]
[399393965,1766326259501,-300.0,0.00038493,2]
[399393966,1766326259511,-300.0,0.00038493,2]
[399393967,1766326259520,-300.0,0.00038493,2]
[399393968,1766326259528,-300.0,0.00038493,2]
[399393969,1766326259537,-300.0,0.00038493,2]
[399393970,1766326259546,-302.57000292,0.00038493,2]
[399393971,1766326259555,-313.84060097,0.00038493,2]
[399393972,1766326259563,-302.70668584,0.00038493,2]
[399393973,1766326259572,-400.19812894,0.00038493,2]
[399393974,1766326259581,-303.74388553,0.00038493,2]
[399393975,1766326259590,-300.0,0.00038493,2]
[399393976,1766326259599,-300.0,0.00038493,2]
[399393977,1766326259607,-367.30463184,0.00038493,2]
[399393978,1766326259616,-539.72940195,0.00038493,2]
[399393979,1766326259625,-302.95619983,0.00038493,2]
[399393980,1766326259634,-594.28559279,0.00038493,2]
[399393981,1766326259643,-300.0,0.00038493,2]
[399393982,1766326259652,-300.0,0.00038493,2]
[399393983,1766326259662,-300.0,0.00038493,2]
[399393984,1766326259672,-500.3558125,0.00038493,2]
[399393985,1766326259682,-300.0,0.00038493,2]
[399393986,1766326259692,-302.57000292,0.00038493,2]
[399393987,1766326259701,-302.70668584,0.00038493,2]
[399393988,1766326259711,-303.74388553,0.00038493,2]
[399393989,1766326259720,-300.0,0.00038493,2]
[399393990,1766326259729,-308.57281289,0.00038493,2]
[399393991,1766326259739,-367.30463184,0.00038493,2]
[399393992,1766326259748,-302.95619983,0.00038493,2]
[399393993,1766326259757,-594.28559279,0.00038493,2]
[399393994,1766326259771,-300.0,0.00038493,2]
[399393995,1766326259780,-301.45920067,0.00038493,2]
[399393996,1766326259790,-330.78308651,0.00038493,2]
[399393997,1766326259799,-300.0,0.00038493,2]
[399393998,1766326259809,-302.57000292,0.00038493,2]
[399393999,1766326259818,-302.70668584,0.00038493,2]
[399394000,1766326259827,-303.74388553,0.00038493,2]
[399394001,1766326259836,-300.0,0.00038493,2]
[399394002,1766326259846,-367.30463184,0.00038493,2]
[399394003,1766326259854,-302.95619983,0.00038493,2]
[399394004,1766326259864,-594.28559279,0.00038493,2]
[399394005,1766326259873,-300.0,0.00038493,2]
[399394006,1766326259883,-300.0,0.00038493,2]
[399394008,1766326259893,-302.57000292,0.00038493,2]
[399394009,1766326259902,-302.70668584,0.00038493,2]
[399394010,1766326259911,-303.74388553,0.00038493,2]
[399394011,1766326259921,-361.56884868,0.00038493,2]
[399394012,1766326259930,-367.30463184,0.00038493,2]
[399394013,1766326259939,-302.95619983,0.00038493,2]
[399394014,1766326259949,-594.28559279,0.00038493,2]
[399394015,1766326259958,-300.0,0.00038493,2]
[399394016,1766326259967,-446.30280704,0.00038493,2]
[399394017,1766326259976,-302.57000292,0.00038493,2]
[399394018,1766326259985,-302.70668584,0.00038493,2]
[399394019,1766326259994,-303.74388553,0.00038493,2]
[399394020,1766326260004,-367.30463184,0.00038493,2]
[399394021,1766326260016,-302.95619983,0.00038493,2]
[399394022,1766326260026,-594.28559279,0.00038493,2]
[399394023,1766326260035,-300.0,0.00038493,2]
[399394024,1766326260046,-302.57000292,0.00038493,2]
[399394025,1766326260056,-302.70668584,0.00038493,2]
[399394026,1766326260066,-303.74388553,0.00038493,2]
[399394027,1766326260075,-367.30463184,0.00038493,2]
[399394028,1766326260085,-302.95619983,0.00038493,2]
[399394029,1766326260095,-594.28559279,0.00038493,2]
[399394030,1766326260104,-300.0,0.00038493,2]
[399394031,1766326260114,-302.57000292,0.00038493,2]
[399394032,1766326260124,-302.70668584,0.00038493,2]
[399394033,1766326260134,-303.74388553,0.00038493,2]
[399394034,1766326260143,-367.30463184,0.00038493,2]
[399394035,1766326260153,-302.95619983,0.00038493,2]
[399394036,1766326260162,-594.28559279,0.00038493,2]
[399394037,1766326260172,-300.0,0.00038493,2]
[399394038,1766326260182,-302.57000292,0.00038493,2]
[399394039,1766326260191,-302.70668584,0.00038493,2]
[399394040,1766326260204,-303.74388553,0.00038493,2]
[399394041,1766326260214,-367.30463184,0.00038493,2]
[399394042,1766326260225,-302.95619983,0.00038493,2]
[399394043,1766326260236,-594.28559279,0.00038493,2]
[399394044,1766326260246,-300.0,0.00038493,2]
[399394045,1766326260258,-302.57000292,0.00038493,2]
[399394046,1766326260269,-302.70668584,0.00038493,2]
[399394047,1766326260278,-303.74388553,0.00038493,2]
[399394048,1766326260287,-367.30463184,0.00038493,2]
[399394049,1766326260298,-302.95619983,0.00038493,2]
[399394050,1766326260307,-594.28559279,0.00038493,2]
[399394051,1766326260318,-300.0,0.00038493,2]
[399394052,1766326260327,-302.57000292,0.00038493,2]
[399394053,1766326260336,-302.70668584,0.00038493,2]
[399394054,1766326260346,-303.74388553,0.00038493,2]
[399394055,1766326260355,-367.30463184,0.00038493,2]
[399394056,1766326260364,-302.95619983,0.00038493,2]
[399394057,1766326260373,-594.28559279,0.00038493,2]
[399394058,1766326260382,-300.0,0.00038493,2]
[399394059,1766326260391,-302.57000292,0.00038493,2]
[399394060,1766326260400,-576.44899553,0.00038493,2]
[399394061,1766326260410,-302.70668584,0.00038493,2]
[399394062,1766326260419,-303.74388553,0.00038493,2]
[399394063,1766326260428,-511.42351324,0.00038493,2]
[399394064,1766326260438,-302.95619983,0.00038493,2]
[399394065,1766326260447,-594.28559279,0.00038493,2]
[399394066,1766326260456,-300.0,0.00038493,2]
[399394067,1766326260466,-302.57000292,0.00038493,2]
[399394068,1766326260475,-3356.66230868,0.00038526,10]
[399394069,1766326260485,-17390.24673447,0.00038526,10]
[399394070,1766326260494,-200.0,0.00038598,2]
[399394071,1766326260503,-200.0,0.00038598,2]
[399394072,1766326260513,-200.0,0.00038598,2]
[399394073,1766326260522,-200.0,0.00038598,2]
[399394074,1766326260531,-200.0,0.00038598,2]
[399394075,1766326260540,-200.0,0.00038598,2]
[399394076,1766326260550,-200.0,0.00038598,2]
[399394077,1766326260559,-200.0,0.00038598,2]
[399394078,1766326260568,-200.0,0.00038598,2]
[399394079,1766326260578,-200.0,0.00038598,2]
[399394080,1766326260587,-200.0,0.00038598,2]
[399394081,1766326260597,-200.0,0.00038598,2]
[399394082,1766326260605,-200.0,0.00038598,2]
[399394083,1766326260615,-200.0,0.00038598,2]
[399394084,1766326260625,-200.0,0.00038598,2]
[399394085,1766326260635,-200.0,0.00038598,2]
[399394086,1766326260643,-200.0,0.00038598,2]
[399394087,1766326260653,-200.0,0.00038598,2]
[399394088,1766326260662,-200.0,0.00038598,2]
[399394089,1766326260671,-200.0,0.00038598,2]
[399394090,1766326260680,-200.0,0.00038598,2]
[399394091,1766326260689,-200.0,0.00038598,2]
[399394092,1766326260698,-200.0,0.00038598,2]
[399394093,1766326260707,-200.0,0.00038598,2]
[399394094,1766326260716,-200.0,0.00038598,2]
[399394095,1766326260725,-200.0,0.00038598,2]
[399394096,1766326260734,-200.0,0.00038598,2]
[399394097,1766326260743,-200.0,0.00038598,2]
[399394098,1766326260753,-200.0,0.00038598,2]
[399394099,1766326260764,-200.0,0.00038598,2]
[399394100,1766326260773,-200.0,0.00038598,2]
[399394101,1766326260782,-200.0,0.00038598,2]
[399394102,1766326260791,-200.0,0.00038598,2]
[399394103,1766326260800,-200.0,0.00038598,2]
[399394104,1766326260810,-200.0,0.00038598,2]
[399394105,1766326260819,-345.0,0.00038598,2]
[399394106,1766326260829,-3076.87,0.000386,14]
[399394107,1766326260839,-150.0,0.0003861,30]
[399394108,1766326260849,-150.0,0.0003861,30]
[399394109,1766326260858,-659.33,0.00038767,2]
[399394110,1766326260868,-481.25,0.00038767,2]
[399394111,1766326260877,-962.42,0.00038767,2]
[399394112,1766326260887,-659.33,0.00038767,2]
[399394113,1766326260896,-10195.477342,0.000388,2]
[399394114,1766326260905,-500.0,0.00038822,2]
[399394115,1766326260915,-576.95091935,0.00038827,2]
[399394116,1766326260925,-570.75,0.000389,14]
[399394117,1766326260934,-2000.0,0.000389,2]
[399394118,1766326260944,-1985.60848995,0.000389,2]
[399394119,1766326260954,-1158.44043386,0.000389,2]
[399394120,1766326260964,-1069.39940285,0.000389,2]
[399394121,1766326260975,-345.66258234,0.000389,2]
[399394122,1766326260985,-1281.03308485,0.000389,2]
[399394123,1766326260995,-11351.2,0.00038904,2]
[399394124,1766326261005,-400.0,0.0003897,2]
[399394125,1766326261017,-400.0,0.0003897,2]
[399394126,1766326261026,-151.0,0.00038997,14]
[399394127,1766326261036,-300.0,0.00038999,10]
[399394128,1766326261045,-300.0,0.00038999,10]
[399394129,1766326261054,-666.0,0.00038999,30]
[399394130,1766326261064,-23461.4329792,0.00039,2]
[399394131,1766326261073,-19906.05460655,0.00039,4]
[399394132,1766326261083,-1335.88140963,0.00039,31]
[399394133,1766326261092,-30560.28975348,0.00039,2]
[399394134,1766326261101,-4018575.7613942,0.00039,2]
[399394135,1766326261333,-770.73633729,0.00039,2]
[399394136,1766326261344,-1327.0897877,0.00039,2]
[399394137,1766326261355,-569.992601,0.00039,2]
[399394138,1766326261373,-500.0,0.00039,2]
[399394139,1766326261392,-8729.85355906,0.00039,2]
[399394140,1766326261403,-2715.99310648,0.00039,2]
[399394141,1766326261413,-420.86114321,0.00039,2]
[399394142,1766326261424,-3391.7295467,0.00039,2]
[399394143,1766326261435,-5476.57451358,0.00039,2]
[399394144,1766326261452,-250.0,0.000279,2]
[399394145,1766326261541,-922.18333418,0.000279,2]
[399394146,1766326261630,-1025.88328883,0.0001087,2]
[399394147,1766326261639,-2490.31095117,0.00018761,2]
[399394148,1766326261653,-1797.61271401,0.00018761,2]
[399394149,1766326261683,-2241.07633482,0.00018761,2]
[399394150,1766326261692,-343.04189762,0.00021761,2]
[399394151,1766326261702,-393.39206397,0.00021761,2]
[399394152,1766326261713,-261.98000005,0.00021761,2]
[399394153,1766326261724,-688.7483796,0.00021761,2]
[399394154,1766326261735,-512.6900035,0.00021761,2]
[399394155,1766326262278,-481.88168583,0.00010779,2]
[399394156,1766326262288,-176.04761394,0.00010779,2]
[399394157,1766326262300,-177.63735296,0.00010779,2]
[399394158,1766326262310,-435.21254302,0.00010779,2]
[399394159,1766326262323,-64.78745698,0.00010779,2]
[399394160,1766326262332,-262.62351002,0.00010779,2]
[399394162,1766326265162,-379.12940536,0.00010779,2]
[399394167,1766326297382,967.933,0.0003499,40]
[399394168,1766326298683,960.0,0.00035616,30]
[399394179,1766326363875,150.0,0.000356,30]
[399394188,1766326420605,386.34050884,0.00035616,30]
[399394192,1766326446763,311.0,0.00035616,30]
[399394220,1766326523974,1909.93,0.00035616,30]
[399394232,1766326551076,307.13,0.000356,30]
[399394234,1766326555737,163.2,0.000356,30]
[399394249,1766326622314,189.89,0.000306,30]
[399394251,1766326632324,664.5,0.000306,30]
[399394252,1766326643936,250.28061745,0.00035616,30]
[399394258,1766326657515,2137.81,0.00035616,30]
[399394263,1766326660749,663.86018137,0.0003561,30]
[399394266,1766326662946,169.0,0.0003561,30]
[399394273,1766326727284,318.51449002,0.0003561,30]
[399394276,1766326744936,1023.0,0.00035,30]
[399394277,1766326747381,199.0,0.00034246,30]
[399394278,1766326747636,199.0,0.00034931,31]
[399394279,1766326747876,199.0,0.00035616,32]
[399394280,1766326749073,480.1,0.000356,30]
[399394281,1766326784462,440.69413697,0.00032876,120]
[399394283,1766326818120,189.89,0.000305,30]
[399394287,1766326857689,469.0,0.00033151,30]
[399394288,1766326858008,469.0,0.00034521,30]
[399394295,1766326865313,-300.0,0.00038356,120]
[399394296,1766326865385,-300.0,0.00038356,120]
[399394297,1766326865460,-469.0,0.00038663,90]
[399394298,1766326865532,-1000.0,0.000389,120]
[399394299,1766326865618,-155.52746,0.00039,120]
[399394300,1766326865689,-153.350733,0.00039,120]
[399394301,1766326866088,-151.0,0.00039,120]
[399394302,1766326866159,-255.307319,0.00039,120]
[399394303,1766326866229,-157.129789,0.00039,120]
[399394304,1766326866303,-151.0,0.00039,120]
[399394305,1766326866371,-151.0,0.00039,120]
[399394306,1766326866441,-151.81547,0.00039,120]
[399394307,1766326866512,-500.0,0.00039041,120]
[399394308,1766326866583,-500.0,0.00039041,120]
[399394309,1766326866660,-500.0,0.00039041,120]
[399394310,1766326866737,-500.0,0.00039041,120]
[399394311,1766326866812,-222.07780504,0.000399,120]
[399394312,1766326866883,-222.07780504,0.000399,120]
[399394313,1766326866957,-222.07780504,0.000399,120]
[399394314,1766326867026,-222.07780504,0.000399,120]
[399394315,1766326867097,-222.07780504,0.000399,120]
[399394316,1766326867169,-222.07780504,0.000399,120]
[399394317,1766326867241,-222.07780504,0.000399,120]
[399394318,1766326867310,-222.07780504,0.000399,120]
[399394319,1766326867381,-222.07780504,0.000399,120]
[399394320,1766326867452,-222.07780504,0.000399,120]
[399394321,1766326867521,-222.07780504,0.000399,120]
[399394322,1766326867590,-222.07780504,0.000399,120]
[399394323,1766326867664,-222.07780504,0.000399,120]
[399394324,1766326867734,-222.07780504,0.000399,120]
[399394325,1766326867804,-222.07780504,0.000399,120]
[399394326,1766326867881,-176.0,0.0004,120]
[399394327,1766326867959,-157.0,0.0004,120]
[399394328,1766326868033,-150.0,0.0004,60]
[399394329,1766326868106,-154.42,0.00040015,120]
[399394330,1766326868170,-156.3,0.00040015,120]
[399394333,1766326868248,-154.42,0.00040115,120]
[399394334,1766326868325,-156.3,0.00040115,120]
[399394337,1766326868405,-154.42,0.00040215,120]
[399394338,1766326868484,-156.30601315,0.00040215,120]
[399394340,1766326868563,-169.0,0.00040274,90]
[399394343,1766326868646,-154.42,0.00040315,120]
[399394345,1766326868724,-154.42,0.00040415,120]
[399394346,1766326868802,-157.0,0.000405,120]
[399394348,1766326868882,-154.42,0.00040515,120]
[399394350,1766326868959,-176.0,0.000406,120]
[399394352,1766326869037,-154.42,0.00040615,120]
[399394355,1766326869115,-154.42,0.00040715,120]
[399394357,1766326869194,-219.18803495,0.00040742,120]
[399394358,1766326869270,-154.42,0.00040815,120]
[399394360,1766326869347,-154.42,0.00040915,120]
[399394363,1766326869419,-4181.0,0.00041,120]
[399394365,1766326869495,-1431.65489649,0.00041,120]
[399394367,1766326869571,-154.38148758,0.00041,60]
[399394369,1766326869649,-154.4818355,0.00041015,120]
[399394370,1766326869727,-354.7280392,0.00041055,120]
[399394372,1766326869806,-469.0,0.00041079,90]
[399394374,1766326869903,-150.0,0.00041095,60]
[399394376,1766326869981,-150.0,0.00041095,60]
[399394378,1766326870055,-150.0,0.00041095,60]
[399394380,1766326870128,-800.0,0.00041095,120]
[399394382,1766326870200,-800.0,0.00041095,120]
[399394384,1766326870272,-800.0,0.00041095,120]
[399394386,1766326870340,-800.0,0.00041095,120]
[399394388,1766326870412,-467.96,0.00041095,120]
[399394390,1766326870490,-500.0,0.00041095,120]
[399394392,1766326870563,-500.0,0.00041095,120]
[399394394,1766326870632,-500.0,0.00041095,120]
[399394396,1766326870708,-500.0,0.00041095,120]
[399394398,1766326870783,-500.0,0.00041095,120]
[399394400,1766326870854,-500.0,0.00041095,120]
[399394402,1766326870929,-500.0,0.00041095,120]
[399394404,1766326871005,-519.0330303,0.00041095,120]
[399394406,1766326871080,-500.0,0.00041095,120]
[399394408,1766326871150,-500.0,0.00041095,120]
[399394410,1766326871220,-500.0,0.00041095,120]
[399394412,1766326871292,-509.56290933,0.00041095,120]
[399394414,1766326871359,-500.0,0.00041095,120]
[399394416,1766326871424,-500.0,0.00041095,120]
[399394418,1766326871490,-500.0,0.00041095,120]
[399394419,1766326871559,-500.0,0.00041095,120]
[399394421,1766326871636,-500.0,0.00041095,120]
[399394423,1766326871720,-500.0,0.00041095,120]
[399394425,1766326871795,-500.0,0.00041095,120]
[399394427,1766326871869,-500.0,0.00041095,120]
[399394429,1766326871940,-478.14775781,0.00041095,120]
[399394431,1766326872009,-500.0,0.00041095,120]
[399394433,1766326872080,-500.0,0.00041095,120]
[399394435,1766326872152,-500.0,0.00041095,120]
[399394437,1766326872221,-500.0,0.00041095,120]
[399394439,1766326872291,-500.0,0.00041095,120]
[399394441,1766326872360,-511.85740455,0.00041095,120]
[399394443,1766326872430,-500.0,0.00041095,120]
[399394445,1766326872498,-500.0,0.00041095,120]
[399394447,1766326872559,-500.0,0.00041095,120]
[399394448,1766326872635,-500.0,0.00041095,120]
[399394450,1766326872714,-500.0,0.00041095,120]
[399394452,1766326872788,-500.0,0.00041095,120]
[399394454,1766326872859,-500.0,0.00041095,120]
[399394460,1766326873194,-500.0,0.00041095,120]
[399394462,1766326873258,-500.0,0.00041095,120]
[399394463,1766326873337,-500.0,0.00041095,120]
[399394465,1766326873415,-500.0,0.00041095,120]
[399394467,1766326873490,-500.0,0.00041095,120]
[399394469,1766326873565,-500.0,0.00041095,120]
[399394471,1766326873640,-500.0,0.00041095,120]
[399394473,1766326873716,-500.0,0.00041095,120]
[399394475,1766326873790,-500.0,0.00041095,120]
[399394477,1766326873862,-500.0,0.00041095,120]
[399394479,1766326873937,-500.0,0.00041095,120]
[399394481,1766326874012,-500.0,0.00041095,120]
[399394483,1766326874086,-500.0,0.00041095,120]
[399394485,1766326874161,-500.0,0.00041095,120]
[399394487,1766326874236,-500.0,0.00041095,120]
[399394489,1766326874309,-500.0,0.00041095,120]
[399394491,1766326874384,-500.0,0.00041095,120]
[399394493,1766326874457,-500.0,0.00041095,120]
[399394495,1766326874530,-500.0,0.00041095,120]
[399394497,1766326874602,-500.0,0.00041095,120]
[399394499,1766326874675,-500.0,0.00041095,120]
[399394501,1766326874751,-500.0,0.00041095,120]
[399394503,1766326874833,-500.0,0.00041095,120]
[399394505,1766326874908,-500.0,0.00041095,120]
[399394507,1766326874985,-500.0,0.00041095,120]
[399394509,1766326875061,-500.0,0.00041095,120]
[399394511,1766326875140,-500.0,0.00041095,120]
[399394513,1766326875218,-500.0,0.00041095,120]
[399394515,1766326875293,-500.0,0.00041095,120]
[399394517,1766326875371,-244.7340883,0.00041095,120]
[399394519,1766326875446,-500.0,0.00041095,120]
[399394521,1766326875520,-516.94188628,0.00041095,120]
[399394523,1766326875597,-500.0,0.00041095,120]
[399394525,1766326875671,-500.0,0.00041095,120]
[399394527,1766326875752,-500.0,0.00041095,120]
[399394529,1766326875828,-500.0,0.00041095,120]
[399394531,1766326875906,-500.0,0.00041095,120]
[399394533,1766326875986,-500.0,0.00041095,120]
[399394535,1766326876082,-500.0,0.00041095,120]
[399394537,1766326876160,-500.0,0.00041095,120]
[399394539,1766326876240,-184.32304124,0.00041095,120]
[399394541,1766326876318,-500.0,0.00041095,120]
[399394543,1766326876394,-500.0,0.00041095,120]
[399394545,1766326876471,-500.0,0.00041095,120]
[399394547,1766326876546,-500.0,0.00041095,120]
[399394549,1766326876621,-500.0,0.00041095,120]
[399394551,1766326876697,-500.0,0.00041095,120]
[399394553,1766326876776,-500.0,0.00041095,120]
[399394555,1766326876848,-500.0,0.00041095,120]
[399394557,1766326876924,-500.0,0.00041095,120]
[399394558,1766326876992,-500.0,0.00041095,120]
[399394559,1766326877062,-500.0,0.00041095,120]
[399394560,1766326877130,-500.0,0.00041095,120]
[399394561,1766326877200,-500.0,0.00041095,120]
[399394562,1766326877270,-500.0,0.00041095,120]
[399394563,1766326877342,-500.0,0.00041095,120]
[399394564,1766326877412,-500.0,0.00041095,120]
[399394565,1766326877483,-500.0,0.00041095,120]
[399394567,1766326877552,-500.0,0.00041095,120]
[399394569,1766326877620,-500.0,0.00041095,120]
[399394571,1766326877688,-500.0,0.00041095,120]
[399394573,1766326877751,-500.0,0.00041095,120]
[399394575,1766326877818,-500.0,0.00041095,120]
[399394577,1766326877881,-437.85242376,0.00041095,120]
[399394579,1766326877951,-500.0,0.00041095,120]
[399394581,1766326878034,-500.0,0.00041095,120]
[399394582,1766326878115,-500.0,0.00041095,120]
[399394585,1766326878196,-500.0,0.00041095,120]
[399394586,1766326878276,-500.0,0.00041095,120]
[399394588,1766326878356,-500.0,0.00041095,120]
[399394590,1766326878435,-500.0,0.00041095,120]
[399394593,1766326878516,-500.0,0.00041095,120]
[399394594,1766326878595,-500.0,0.00041095,120]
[399394596,1766326878674,-500.0,0.00041095,120]
[399394598,1766326878754,-499.91921749,0.00041095,120]
[399394600,1766326878832,-500.0,0.00041095,120]
[399394602,1766326878914,-500.0,0.00041095,120]
[399394604,1766326878996,-505.93126731,0.00041095,120]
[399394606,1766326879076,-500.0,0.00041095,120]
[399394608,1766326879158,-500.0,0.00041095,120]
[399394610,1766326879238,-500.0,0.00041095,120]
[399394612,1766326879317,-500.0,0.00041095,120]
[399394614,1766326879403,-500.0,0.00041095,120]
[399394616,1766326879486,-500.0,0.00041095,120]
[399394618,1766326879566,-500.0,0.00041095,120]
[399394621,1766326879650,-500.0,0.00041095,120]
[399394623,1766326879729,-500.0,0.00041095,120]
[399394624,1766326879806,-500.0,0.00041095,120]
[399394626,1766326879884,-500.0,0.00041095,120]
[399394628,1766326879964,-500.0,0.00041095,120]
[399394630,1766326880041,-500.0,0.00041095,120]
[399394632,1766326880114,-500.0,0.00041095,120]
[399394634,1766326880192,-308.07513496,0.00041095,120]
[399394636,1766326880272,-457.31800274,0.00041095,120]
[399394639,1766326880352,-500.0,0.00041095,120]
[399394643,1766326880607,-500.0,0.00041095,120]
[399394645,1766326880677,-500.0,0.00041095,120]
[399394647,1766326880746,-500.0,0.00041095,120]
[399394649,1766326880817,-500.0,0.00041095,120]
[399394652,1766326880894,-500.0,0.00041095,120]
[399394653,1766326880974,-500.0,0.00041095,120]
[399394655,1766326881054,-500.0,0.00041095,120]
[399394658,1766326881134,-500.0,0.00041095,120]
[399394660,1766326881214,-500.0,0.00041095,120]
[399394661,1766326881294,-500.0,0.00041095,120]
[399394664,1766326881372,-500.0,0.00041095,120]
[399394666,1766326881452,-500.0,0.00041095,120]
[399394668,1766326881530,-500.0,0.00041095,120]
[399394670,1766326881608,-500.0,0.00041095,120]
[399394672,1766326881686,-500.0,0.00041095,120]
[399394674,1766326881766,-500.0,0.00041095,120]
[399394676,1766326881841,-500.0,0.00041095,120]
[399394678,1766326881918,-500.0,0.00041095,120]
[399394680,1766326882000,-500.0,0.00041095,120]
[399394682,1766326882081,-500.0,0.00041095,120]
[399394684,1766326882163,-500.0,0.00041095,120]
[399394686,1766326882244,-500.0,0.00041095,120]
[399394688,1766326882324,-500.0,0.00041095,120]
[399394689,1766326882405,-500.0,0.00041095,120]
[399394691,1766326882485,-500.0,0.00041095,120]
[399394693,1766326882566,-555.15662817,0.00041095,120]
[399394695,1766326882649,-500.0,0.00041095,120]
[399394697,1766326882730,-500.0,0.00041095,120]
[399394699,1766326882809,-500.0,0.00041095,120]
[399394702,1766326882889,-500.0,0.00041095,120]
[399394704,1766326882970,-500.0,0.00041095,120]
[399394706,1766326883054,-500.0,0.00041095,120]
[399394708,1766326883138,-500.0,0.00041095,120]
[399394709,1766326883222,-500.0,0.00041095,120]
[399394711,1766326883306,-500.0,0.00041095,120]
[399394713,1766326883390,-500.0,0.00041095,120]
[399394715,1766326883467,-500.0,0.00041095,120]
[399394718,1766326883551,-500.0,0.00041095,120]
[399394719,1766326883635,-500.0,0.00041095,120]
[399394722,1766326883721,-500.0,0.00041095,120]
[399394723,1766326883801,-500.0,0.00041095,120]
[399394725,1766326883884,-500.0,0.00041095,120]
[399394728,1766326883966,-500.0,0.00041095,120]
[399394729,1766326884047,-500.0,0.00041095,120]
[399394731,1766326884129,-500.0,0.00041095,120]
[399394733,1766326884209,-500.0,0.00041095,120]
[399394735,1766326884290,-500.0,0.00041095,120]
[399394737,1766326884364,-500.0,0.00041095,120]
[399394738,1766326884435,-500.0,0.00041095,120]
[399394739,1766326884506,-500.0,0.00041095,120]
[399394742,1766326884590,-500.0,0.00041095,120]
[399394743,1766326884660,-500.0,0.00041095,120]
[399394746,1766326884739,-500.0,0.00041095,120]
[399394748,1766326884814,-500.0,0.00041095,120]
[399394749,1766326884890,-500.0,0.00041095,120]
[399394752,1766326884967,-369.8,0.00041095,120]
[399394754,1766326885043,-500.0,0.00041095,120]
[399394756,1766326885118,-500.0,0.00041095,120]
[399394758,1766326885194,-500.0,0.00041095,120]
[399394760,1766326885272,-500.0,0.00041095,120]
[399394762,1766326885348,-500.0,0.00041095,120]
[399394764,1766326885425,-500.0,0.00041095,120]